fUSD/lending_fUSD_20241022
["ID","MTS","AMOUNT","RATE_DAILY","PERIOD"]
[340653584,1729603843009,-1408.10771144,0.00011,2]
[340653585,1729603843021,-1495.7125132,0.00011,2]
[340653586,1729603843113,-19439.27167501,0.00011,2]
[340653587,1729603843125,-5562.72028883,0.00011,2]
[340653593,1729603845641,-34215.78214511,0.00011,2]
[340653594,1729603845701,-1209.28460681,0.00011,2]
[340653595,1729603845763,-2438.53564919,0.00011,2]
[340653596,1729603845774,-1000.54103258,0.00011,2]
[340653622,1729605009172,652.9,0.00010051,2]
[340653642,1729605031831,-150.0,0.0001079,2]
[340653643,1729605031841,-632.06,0.00010799,2]
[340653644,1729605031850,-262.0124,0.000108,2]
[340653645,1729605031859,-150.0,0.00010877,2]
[340653646,1729605031868,-150.0,0.00010899,2]
[340653647,1729605031878,-211.56314671,0.000109,2]
[340653648,1729605031892,-377.15033786,0.000109,2]
[340653649,1729605031904,-411.28651543,0.000109,2]
[340653650,1729605031916,-375.00980713,0.000109,2]
[340653651,1729605031927,-2039.01,0.000109,2]
[340653652,1729605031954,-1628.4376726,0.000109,2]
[340653653,1729605032018,-455.10486291,0.000109,2]
[340653665,1729605037883,-752.39492271,0.000109,2]
[340653666,1729605037895,-5024.46714565,0.000109,2]
[340653667,1729605037904,-624.77186612,0.000109,2]
[340653668,1729605037942,-15004.27913388,0.000109,2]
[340653669,1729605037952,-252.1764,0.000109,2]
[340653670,1729605037961,-17804.5832,0.000109,2]
[340653671,1729605038084,-2889.63883065,0.000109,2]
[340653672,1729605038094,-500.0,0.000109,2]
[340653673,1729605038104,-173.87190492,0.000109,2]
[340653674,1729605038114,-249.36626514,0.000109,2]
[340653675,1729605038124,-4871.44629028,0.000109,2]
[340653676,1729605038134,-5925.63903232,0.000109,2]
[340653677,1729605038143,-161.14499672,0.00010973,2]
[340653678,1729605038153,-500.0,0.00010973,2]
[340653679,1729605038162,-500.0,0.00010973,2]
[340653680,1729605038171,-1246.9965437,0.00010999,2]
[340653681,1729605038181,-311.54109741,0.00010999,2]
[340653682,1729605038190,-48679.24987003,0.00011,2]
[340653683,1729605038202,-65066.39327239,0.00011,2]
[340653684,1729605038213,-477.94983702,0.00011,2]
[340653685,1729605038228,-17559.15279119,0.00011,2]
[340653686,1729605038240,-1164.65778871,0.00011,2]
[340653694,1729605039897,-41014.18150933,0.00011,2]
[340653695,1729605039909,-669.865,0.00011,2]
[340653696,1729605040025,-7399.0,0.00011,2]
[340653697,1729605040036,-898.88029464,0.00011,2]
[340653698,1729605040152,-1613.3500015,0.00011,2]
[340653699,1729605040221,-335.254,0.00011,2]
[340653726,1729605042910,-3018.92539986,0.00011,2]
[340653727,1729605042922,-8593.18752352,0.00011,2]
[340653733,1729605043131,-20239.37543688,0.00011,2]
[340653742,1729605046033,-21892.803,0.00011,2]
[340653743,1729605046091,-70277.56484052,0.00011,2]
[340653746,1729605395377,250.0,0.0001,2]
[340653747,1729605608931,672.97,9.17e-05,2]
[340653748,1729605938146,-218.57964624,0.000107,2]
[340653749,1729605938166,-300.0,0.00010799,2]
[340653750,1729605938185,-423.94,0.000108,2]
[340653751,1729605938205,-212.3217482,0.000108,2]
[340653752,1729605950089,-401.46601436,0.000108,2]
[340653753,1729606111611,639.32,9.172e-05,2]
[340653769,1729606231986,-150.0,0.00010899,2]
[340653771,1729606231998,-517.83,0.000109,2]
[340653774,1729606232092,-9277.4467,0.000109,2]
[340653775,1729606232105,-9096.10609442,0.000109,2]
[340653776,1729606232120,-6310.88016714,0.000109,2]
[340653777,1729606232150,-32163.98278213,0.000109,2]
[340653778,1729606232223,-3465.39809847,0.000109,2]
[340653779,1729606232237,-1333.06,0.000109,2]
[340653780,1729606232265,-702.0182795,0.000109,2]
[340653781,1729606232278,-6793.082792,0.000109,2]
[340653784,1729606238028,-1165.62992572,0.000109,2]
[340653785,1729606238128,-355.94215691,0.000109,2]
[340653786,1729606238142,-467.019,0.000109,2]
[340653787,1729606238228,-511.12368721,0.000109,2]
[340653788,1729606238404,-13244.1018165,0.000109,2]
[340653789,1729606238418,-6500.0,0.000109,2]
[340653790,1729606238430,-604.70260146,0.000109,2]
[340653791,1729606238443,-46468.21811356,0.000109,2]
[340653796,1729606240081,-263.06280001,0.000109,2]
[340653797,1729606240198,-889.35494117,0.000109,2]
[340653798,1729606240233,-709.39930348,0.000109,2]
[340653799,1729606240252,-1398.23847475,0.000109,2]
[340653800,1729606240267,-271.72636703,0.000109,2]
[340653801,1729606240281,-167.06552914,0.000109,2]
[340653802,1729606240294,-173.87190492,0.000109,2]
[340653803,1729606240306,-166.24417676,0.000109,2]
[340653804,1729606240319,-322.89386886,0.000109,2]
[340653805,1729606240332,-573.34938029,0.000109,2]
[340653806,1729606240348,-5623.01499999,0.000109,2]
[340653841,1729606243028,-20927.6391948,0.000109,2]
[340653842,1729606243038,-546.2623875,0.00010999,2]
[340653845,1729606243048,-21478.30906106,0.00011,2]
[340653848,1729606243131,-1390.2000002,0.00011,2]
[340653849,1729606243142,-7861.37232209,0.00011,2]
[340653850,1729606243154,-4001.4097933,0.00011,2]
[340653852,1729606245998,-2500.0,0.000109,2]
[340653853,1729606246008,-10982.64815887,0.00011,2]
[340653854,1729606246068,-53492.80000002,0.00011,2]
[340653862,1729606633465,676.35,8.307e-05,2]
[340653863,1729606654023,1500.0,0.0001,2]
[340653864,1729606656488,1500.0,0.0001,2]
[340653865,1729606656914,1500.0,0.0001,2]
[340653866,1729606657223,1500.0,0.0001,2]
[340653867,1729606657554,1500.0,0.0001,2]
[340653868,1729606682601,200.0,0.00010145,2]
[340653869,1729606763053,23900.0,0.00010158,2]
[340653870,1729606837270,250.0,0.00010128,2]
[340653871,1729606920960,250.0,0.00010135,2]
[340653890,1729606968520,200.0,0.0001016,2]
[340653891,1729606970170,1852.42,0.0001016,2]
[340653892,1729606980356,172.63,0.0001016,2]
[340653893,1729606981553,500.0,0.0001016,2]
[340653894,1729607112681,4035.32,0.00010088,2]
[340653895,1729607122396,2794.07,0.00010119,2]
[340653896,1729607136939,169.23,0.00010118,2]
[340653897,1729607184215,642.53,8.305e-05,2]
[340653898,1729607209775,250.0,0.0001,2]
[340653899,1729607246733,720.65,0.00010173,2]
[340653900,1729607257608,23900.0,0.00010115,2]
[340653901,1729607336204,336.55,9.968e-05,2]
[340653906,1729607337843,250.0,9.888e-05,2]
[340653930,1729607432432,-342.59133312,0.00010469,2]
[340654504,1729607438503,-1360.41206838,0.00010469,2]
[340654506,1729607438516,-412.7937,0.000105,2]
[340654508,1729607438525,-642.53,0.00010569,2]
[340654510,1729607438535,-150.0,0.00010599,2]
[340654512,1729607438544,-1500.0,0.000106,2]
[340654514,1729607438553,-1500.0,0.000106,2]
[340654516,1729607438563,-1870.73,0.000106,2]
[340654518,1729607438573,-18403.35045039,0.000106,2]
[340654520,1729607438584,-1170.94510886,0.000106,2]
[340654522,1729607438599,-561.82928208,0.000106,2]
[340654525,1729607438611,-3735.142385,0.000106,2]
[340654532,1729607438673,-9411.05601202,0.000106,2]
[340654534,1729607438683,-2231.39747498,0.00010673,2]
[340654536,1729607438694,-1092.64767455,0.00010673,2]
[340654538,1729607438706,-1117.71596049,0.00010673,2]
[340654542,1729607438737,250.0,9.886e-05,2]
[340654545,1729607438758,-7768.23888998,0.00010673,2]
[340654547,1729607438770,-180.83,0.000107,2]
[340654549,1729607438780,-150.0,0.00010727,2]
[340654551,1729607438789,-150.0,0.00010731,2]
[340654553,1729607438799,-150.0,0.00010732,2]
[340654555,1729607438808,-150.0,0.00010732,2]
[340654557,1729607438817,-150.0,0.00010739,2]
[340654559,1729607438827,-299.99,0.00010739,2]
[340654561,1729607438839,-1500.0,0.00010741,2]
[340654563,1729607438849,-150.0,0.00010743,2]
[340654565,1729607438859,-150.0,0.00010759,2]
[340654567,1729607438868,-1500.0,0.00010759,2]
[340654569,1729607438877,-150.0,0.00010761,2]
[340654571,1729607438887,-150.0,0.00010778,2]
[340654573,1729607438897,-150.0,0.0001078,2]
[340654575,1729607438907,-150.0,0.00010787,2]
[340654577,1729607438916,-150.0,0.00010788,2]
[340654579,1729607438925,-150.0,0.00010789,2]
[340654581,1729607438935,-150.0,0.00010791,2]
[340654583,1729607438944,-150.0,0.00010792,2]
[340654585,1729607438955,-6504.2533,0.000108,2]
[340654587,1729607438964,-150.0,0.000108,2]
[340654589,1729607438974,-150.0,0.00010801,2]
[340654591,1729607438984,-150.0,0.00010806,2]
[340654593,1729607438994,-1000.0,0.0001081,2]
[340654595,1729607439003,-150.0,0.00010816,2]
[340654597,1729607439015,-150.0,0.0001082,2]
[340654598,1729607439024,-150.0,0.0001082,2]
[340654600,1729607439035,-150.0,0.00010821,2]
[340654602,1729607439045,-150.0,0.00010825,2]
[340654604,1729607439055,-150.0,0.00010826,2]
[340654606,1729607439065,-150.0,0.00010828,2]
[340654607,1729607439075,-150.0,0.00010836,2]
[340654609,1729607439084,-150.0,0.0001084,2]
[340654611,1729607439094,-150.0,0.00010841,2]
[340654613,1729607439104,-150.0,0.00010842,2]
[340654615,1729607439113,-230.04490207,0.00010843,2]
[340654617,1729607439125,-150.0,0.00010844,2]
[340654619,1729607439135,-150.0,0.00010853,2]
[340654621,1729607439145,-150.0,0.00010853,2]
[340654623,1729607439155,-150.0,0.00010855,2]
[340654625,1729607439164,-150.0,0.00010856,2]
[340654627,1729607439174,-150.0,0.0001086,2]
[340654629,1729607439184,-150.0,0.00010861,2]
[340654631,1729607439194,-150.0,0.00010869,2]
[340654633,1729607439204,-150.0,0.00010869,2]
[340654635,1729607439214,-921.413,0.00010872,2]
[340654637,1729607439223,-170.73,0.00010872,2]
[340654639,1729607439232,-923.1,0.00010872,2]
[340654641,1729607439242,-499.99,0.00010872,2]
[340654643,1729607439251,-2241.76,0.00010872,2]
[340654645,1729607439261,-150.0,0.00010873,2]
[340654647,1729607439273,-150.0,0.00010874,2]
[340654649,1729607439284,-150.0,0.00010877,2]
[340654651,1729607439295,-150.0,0.00010878,2]
[340654652,1729607439305,-150.0,0.00010879,2]
[340654654,1729607439314,-4440.31997814,0.0001088,2]
[340654656,1729607439324,-150.54012692,0.00010886,2]
[340654658,1729607439335,-150.0,0.00010891,2]
[340654660,1729607439345,-150.0,0.00010895,2]
[340654662,1729607439355,-6701.58084009,0.00010899,2]
[340654748,1729607440185,-19802.78629698,0.00010899,2]
[340654750,1729607440194,-1485.0798,0.000109,2]
[340654752,1729607440204,-494.4045,0.000109,2]
[340654754,1729607440213,-283.5187,0.000109,2]
[340654756,1729607440222,-11996.31527535,0.000109,2]
[340654758,1729607440235,-475.21517826,0.000109,2]
[340654760,1729607440247,-678.03,0.000109,2]
[340654762,1729607440257,-4010.853084,0.000109,2]
[340654765,1729607440272,-890.3740666,0.000109,2]
[340654767,1729607440284,-4307.56043718,0.000109,2]
[340654769,1729607440298,-1609.42485861,0.000109,2]
[340654771,1729607440307,-493.2447,0.000109,2]
[340654773,1729607440317,-480.6291,0.000109,2]
[340654785,1729607440427,-1772.01373018,0.000109,2]
[340654787,1729607440439,-2598.83755617,0.000109,2]
[340654790,1729607440455,-490.54421365,0.000109,2]
[340654792,1729607440465,-588.9124,0.000109,2]
[340654794,1729607440474,-11441.94142363,0.000109,2]
[340654796,1729607440486,-6286.61477637,0.000109,2]
[340654798,1729607440496,-4867.41424735,0.000109,2]
[340654800,1729607440508,-2632.58575265,0.000109,2]
[340654802,1729607440523,-75.01424235,0.000109,2]
[340654804,1729607440534,-240.03680786,0.000109,2]
[340654806,1729607440546,-253.54123628,0.000109,2]
[340654808,1729607440556,-3247.63086018,0.000109,2]
[340654810,1729607440566,-272.71,0.00010901,2]
[340654812,1729607440575,-150.0,0.00010903,2]
[340654814,1729607440586,-150.0,0.00010905,2]
[340654816,1729607440596,-150.0,0.00010908,2]
[340654818,1729607440605,-150.0,0.00010912,2]
[340654820,1729607440615,-150.0,0.00010912,2]
[340654822,1729607440624,-150.0,0.00010914,2]
[340654824,1729607440633,-150.0,0.00010918,2]
[340654826,1729607440643,-150.0,0.00010921,2]
[340654828,1729607440653,-150.0,0.00010921,2]
[340654829,1729607440663,-150.0,0.00010933,2]
[340654830,1729607440673,-150.0,0.00010935,2]
[340654831,1729607440682,-150.0,0.00010935,2]
[340654832,1729607440692,-150.0,0.00010936,2]
[340654833,1729607440702,-150.0,0.00010937,2]
[340654834,1729607440711,-150.0,0.00010938,2]
[340654835,1729607440721,-150.0,0.00010939,2]
[340654836,1729607440730,-1500.0,0.00010939,2]
[340654837,1729607440739,-505.9120352,0.00010945,2]
[340654838,1729607440750,-150.0,0.00010945,2]
[340654839,1729607440759,-150.0,0.00010947,2]
[340654840,1729607440774,-150.0,0.00010951,2]
[340654841,1729607440784,-150.0,0.00010951,2]
[340654842,1729607440794,-150.0,0.00010951,2]
[340654843,1729607440804,-150.0,0.00010951,2]
[340654844,1729607440813,-150.0,0.00010953,2]
[340654845,1729607440823,-150.0,0.00010954,2]
[340654846,1729607440832,-150.0,0.00010956,2]
[340654847,1729607440842,-150.0,0.00010958,2]
[340654848,1729607440853,-214.89,0.00010959,2]
[340654850,1729607440864,-250.0,0.00010959,2]
[340654852,1729607440874,-847.6,0.00010959,2]
[340654854,1729607440883,-1500.0,0.00010959,2]
[340654856,1729607440893,-150.0,0.00010959,2]
[340654858,1729607440903,-150.0,0.0001096,2]
[340654860,1729607440913,-150.0,0.0001097,2]
[340654862,1729607440923,-150.0,0.00010971,2]
[340654864,1729607440932,-150.0,0.00010971,2]
[340654866,1729607440941,-150.0,0.00010972,2]
[340654868,1729607440951,-507.72510375,0.00010973,2]
[340654869,1729607440960,-500.0,0.00010973,2]
[340654871,1729607440970,-500.0,0.00010973,2]
[340654873,1729607440979,-500.0,0.00010973,2]
[340654875,1729607440989,-150.0,0.00010974,2]
[340654877,1729607440999,-150.0,0.00010978,2]
[340654879,1729607441008,-150.0,0.00010982,2]
[340654881,1729607441020,-150.0,0.00010983,2]
[340654883,1729607441029,-150.0,0.00010988,2]
[340654885,1729607441039,-150.0,0.00010991,2]
[340654887,1729607441049,-150.0,0.00010993,2]
[340654889,1729607441058,-87.45395673,0.00010993,2]
[340654891,1729607441071,-62.54604327,0.00010993,2]
[340654893,1729607441080,-236.02708207,0.00010997,2]
[340654896,1729607441092,-1314.12057793,0.00010997,2]
[340654898,1729607441101,-498.79861748,0.00010999,2]
[340654900,1729607441111,-500.0,0.00010999,2]
[340654902,1729607441122,-156.08391184,0.00010999,2]
[340654904,1729607441131,-52.81802863,0.00011,2]
[340654906,1729607441142,-312.3160075,0.00011,2]
[340654908,1729607441158,-94692.48518098,0.00011,2]
[340654911,1729607441169,-1733.2616313,0.00011,2]
[340654913,1729607441180,-18760.5019774,0.00011,2]
[340654915,1729607441191,-8207.71589643,0.00011,2]
[340654917,1729607441202,-498.25293264,0.00011,2]
[340654919,1729607441213,-388.52572766,0.00011,2]
[340654921,1729607441224,-2933.56225702,0.00011,2]
[340654923,1729607441235,-3212.29751,0.00011,2]
[340654925,1729607441246,-703.03151093,0.00011,2]
[340654927,1729607441257,-170643.98268445,0.00011,2]
[340654930,1729607441271,-2285.68501998,0.00011,2]
[340654932,1729607441283,-703.655,0.00011,2]
[340654934,1729607441297,-533.1,0.00011,2]
[340654936,1729607441308,-691.33562388,0.00011,2]
[340654938,1729607441318,-536.93741793,0.00011,2]
[340654940,1729607441331,-1490.48160631,0.00011,2]
[340654943,1729607441342,-1065.9793395,0.00011,2]
[340654945,1729607441353,-670.7,0.00011,2]
[340654947,1729607441366,-7994.99398498,0.00011,2]
[340654949,1729607441378,-1633.56266826,0.00011,2]
[340655127,1729607443261,-1141.1644865,0.00011,2]
[340655130,1729607443276,-339.70504549,0.00011,2]
[340655142,1729607443388,-507.9479485,0.00011,2]
[340655144,1729607443401,-3426.09556499,0.00011,2]
[340655146,1729607443412,-539.08573,0.00011,2]
[340655161,1729607443544,-6057.37127244,0.00011,2]
[340655163,1729607443559,-3392.691366,0.00011,2]
[340655380,1729607446369,-320.01133991,0.00010973,2]
[340655382,1729607446379,-305.41593746,0.00011,2]
[340655384,1729607446390,-3411.44559875,0.00011,2]
[340655387,1729607446402,-1305.78224927,0.00011,2]
[340655389,1729607446413,-13528.89887147,0.00011,2]
[340655391,1729607446425,-1740.74654837,0.00011,2]
[340655399,1729607446499,-174217.9217082,0.00011,2]
[340655401,1729607446511,-1225.92496132,0.00011,2]
[340655412,1729607446614,-4144.99859278,0.00011,2]
[340655425,1729607446735,-743.48803711,0.00011,2]
[340655428,1729607446748,-4206.91274962,0.00011,2]
[340655430,1729607446759,-402.04,0.00011,2]
[340655432,1729607446774,-13531.19586368,0.00011,2]
[340655684,1729607766132,1000.0,0.00010169,2]
[340655685,1729607820171,578.27,8.219e-05,2]
[340655686,1729607821390,23900.0,0.0001013,2]
[340655690,1729607925150,250.0,0.00010102,2]
[340655697,1729608029134,250.0,0.00010105,2]
[340655698,1729608072271,500.0,9.888e-05,2]
[340655699,1729608114853,156.35,9.888e-05,2]
[340655701,1729608219913,-578.27,0.00010483,2]
[340655702,1729608219935,-156.35,0.00010506,2]
[340655703,1729608219959,-150.0,0.00010728,2]
[340655704,1729608219983,-150.0,0.00010734,2]
[340655705,1729608220006,-150.0,0.00010734,2]
[340655706,1729608220030,-150.0,0.00010741,2]
[340655707,1729608220052,-150.0,0.00010743,2]
[340655708,1729608220074,-150.0,0.00010745,2]
[340655709,1729608220097,-150.0,0.00010749,2]
[340655710,1729608220122,-150.0,0.0001075,2]
[340655711,1729608220144,-150.0,0.00010764,2]
[340655712,1729608220166,-150.0,0.00010765,2]
[340655713,1729608220187,-150.0,0.00010782,2]
[340655714,1729608220211,-150.0,0.00010787,2]
[340655715,1729608220234,-150.0,0.00010791,2]
[340655716,1729608220257,-150.0,0.00010792,2]
[340655717,1729608220280,-150.0,0.00010798,2]
[340655718,1729608220303,-150.0,0.00010799,2]
[340655719,1729608280793,218.16,9.91e-05,2]
[340655720,1729608287398,1397.03,9.907e-05,2]
[340655721,1729608302236,200.0,9.907e-05,2]
[340655722,1729608341560,549.37,8.219e-05,2]
[340655723,1729608481756,250.0,9.897e-05,2]
[340655729,1729608553350,17736.12,9.897e-05,2]
[340655730,1729608591151,250.0,9.897e-05,2]
[340655731,1729608610474,396.67,9.897e-05,2]
[340655733,1729608621989,156.35,9.897e-05,2]
[340655744,1729608632368,-549.37,0.00010471,2]
[340655745,1729608632378,-150.0,0.00010733,2]
[340655747,1729608632387,-150.0,0.00010745,2]
[340655748,1729608632396,-150.0,0.0001075,2]
[340655749,1729608632406,-150.0,0.00010759,2]
[340655750,1729608632415,-150.0,0.00010761,2]
[340655751,1729608632424,-150.0,0.00010762,2]
[340655752,1729608632433,-150.0,0.00010779,2]
[340655753,1729608632442,-150.0,0.00010781,2]
[340655754,1729608632452,-150.0,0.00010783,2]
[340655755,1729608632463,-150.0,0.00010803,2]
[340655756,1729608632472,-150.0,0.00010803,2]
[340655757,1729608632481,-150.0,0.00010806,2]
[340655758,1729608632490,-150.0,0.00010809,2]
[340655759,1729608632500,-150.0,0.00010812,2]
[340655760,1729608632510,-150.0,0.00010817,2]
[340655761,1729608632521,-150.0,0.00010824,2]
[340655762,1729608632532,-56.02853465,0.00010824,2]
[340655763,1729608632545,-443.96146535,0.00010824,2]
[340655764,1729608632554,-150.0,0.00010833,2]
[340655765,1729608632564,-150.0,0.00010837,2]
[340655766,1729608632573,-150.0,0.00010847,2]
[340655767,1729608632582,-150.0,0.00010848,2]
[340655768,1729608632592,-150.0,0.0001085,2]
[340655769,1729608632601,-1500.0,0.00010851,2]
[340655770,1729608632613,-150.0,0.00010855,2]
[340655771,1729608632625,-150.0,0.00010857,2]
[340655772,1729608632636,-150.0,0.00010862,2]
[340655773,1729608632647,-150.0,0.00010862,2]
[340655774,1729608632658,-150.0,0.00010864,2]
[340655775,1729608632667,-218.17976226,0.00010872,2]
[340655776,1729608632678,-150.0,0.00010879,2]
[340655777,1729608632688,-150.0,0.00010894,2]
[340655778,1729608632700,-150.0,0.00010894,2]
[340655779,1729608632711,-5583.85877239,0.000109,2]
[340655780,1729608632724,-593.45296021,0.000109,2]
[340655781,1729608632735,-877.19624056,0.000109,2]
[340655782,1729608632747,-3099.91875805,0.000109,2]
[340655785,1729608632762,-368.7704374,0.000109,2]
[340655787,1729608632773,-2637.99999999,0.000109,2]
[340655789,1729608632788,-11087.34352134,0.000109,2]
[340655791,1729608632797,-169.02749086,0.000109,2]
[340655793,1729608632806,-150.0,0.00010901,2]
[340655795,1729608632815,-150.0,0.00010908,2]
[340655797,1729608632824,-150.0,0.00010915,2]
[340655799,1729608632833,-150.0,0.00010931,2]
[340655801,1729608632843,-150.0,0.00010933,2]
[340655803,1729608632852,-150.0,0.00010938,2]
[340655805,1729608632862,-150.0,0.00010942,2]
[340655808,1729608632872,-150.0,0.00010942,2]
[340655810,1729608632881,-150.0,0.00010947,2]
[340655812,1729608632890,-150.0,0.00010957,2]
[340655813,1729608632899,-171.91,0.00010959,2]
[340655815,1729608632908,-150.0,0.00010972,2]
[340655817,1729608632917,-150.0,0.00010984,2]
[340655819,1729608632926,-150.0,0.00010984,2]
[340655821,1729608632936,-150.0,0.00010989,2]
[340655823,1729608632946,-150.0,0.00010996,2]
[340655825,1729608632955,-151.13159485,0.00010997,2]
[340655827,1729608632965,-498.79861748,0.00010999,2]
[340655829,1729608632974,-737.131,0.00010999,2]
[340655831,1729608632983,-170.73,0.00010999,2]
[340655833,1729608632992,-459.25873829,0.00010999,2]
[340655835,1729608633002,-315429.41415179,0.00011,2]
[340655837,1729608633014,-263206.68522333,0.00011,2]
[340655839,1729608633025,-500.0,0.00011,2]
[340655842,1729608633036,-2693.34,0.00011,2]
[340655844,1729608633048,-52694.00000012,0.00011,2]
[340655845,1729608633060,-24274.19999354,0.00011,2]
[340655846,1729608633072,-3416.88,0.00011,2]
[340655847,1729608633083,-1450.0,0.00011,2]
[340655850,1729608638491,-2165.08724012,0.000109,2]
[340655851,1729608638501,-602.17,0.00010959,2]
[340655852,1729608638511,-101807.8417836,0.00011,2]
[340655853,1729608638522,-63732.55663896,0.00011,2]
[340655854,1729608638533,-251560.82676562,0.00011,2]
[340655855,1729608638544,-20692.3719441,0.00011,2]
[340655856,1729608638555,-13974.06516712,0.00011,2]
[340655857,1729608638632,-1008.01357761,0.00011,2]
[340655858,1729608638647,-173806.52552491,0.00011,2]
[340655859,1729608638658,-1200.0,0.00011,2]
[340655860,1729608638669,-448.89210679,0.00011,2]
[340655861,1729608638680,-605.108685,0.00011,2]
[340655998,1729608640536,-671.21727097,0.00011,2]
[340656001,1729608640547,-556.6841012,0.00011,2]
[340656003,1729608640558,-6695.4642,0.00011,2]
[340656005,1729608640569,-887.08637519,0.00011,2]
[340656009,1729608640594,-86626.54293507,0.00011,2]
[340656016,1729608640655,-2818.5,0.00011,2]
[340656018,1729608640666,-2782.97549926,0.00011,2]
[340656024,1729608640713,-7062.84364601,0.00011,2]
[340656031,1729608640776,-510.9874,0.00011,2]
[340656033,1729608640787,-312.7034,0.00011,2]
[340656035,1729608640798,-3642.57914762,0.00011,2]
[340656037,1729608640809,-3933.36463944,0.00011,2]
[340656039,1729608640820,-4432.26839026,0.00011,2]
[340656042,1729608640832,-1091.78782268,0.00011,2]
[340656044,1729608640843,-2703.39999998,0.00011,2]
[340656353,1729608643505,-5750.5391324,0.00011,2]
[340656358,1729608643517,-5588.48944427,0.00011,2]
[340656362,1729608643532,-1863.73840506,0.00011,2]
[340656385,1729608643659,-33644.51898478,0.00011,2]
[340656387,1729608643670,-25787.6520449,0.00011,2]
[340656390,1729608643682,-5960.10448255,0.00011,2]
[340656393,1729608643694,-507.1881138,0.00011,2]
[340656395,1729608643705,-7286.13343212,0.00011,2]
[340656399,1729608643716,-6740.00001,0.00011,2]
[340656689,1729608646659,-87946.23820787,0.00011,2]
[340656691,1729608646671,-134810.0,0.00011,2]
[340656693,1729608646682,-558.75611506,0.00011,2]
[340656695,1729608646693,-6445.15857475,0.00011,2]
[340656698,1729608646708,-16184.85409687,0.00011,2]
[340656700,1729608646720,-3382.40129982,0.00011,2]
[340659559,1729608871505,494.43,9.155e-05,2]
[340659565,1729609026771,250.0,0.0001,2]
[340659567,1729609402484,8666.6454789,0.00025,120]
[340659568,1729609481159,469.7,8.409e-05,2]
[340659569,1729609552279,-168.669139,0.00010619,2]
[340659570,1729609552300,-232.79687536,0.00010673,2]
[340659571,1729609555091,-236.90312464,0.00010673,2]
[340659572,1729609555114,-150.0,0.00010899,2]
[340659573,1729609555137,-179.81498284,0.000109,2]
[340659574,1729609555159,-588.12328696,0.000109,2]
[340659575,1729609598372,150.0,0.000125,3]
[340659576,1729609741866,156.35,0.00010029,2]
[340659579,1729609774552,250.0,0.00010029,2]
[340659592,1729609831718,-365.06759219,0.000108,2]
[340659593,1729609831730,-176.80672699,0.000108,2]
[340659594,1729609831740,-156.35,0.00010864,2]
[340659595,1729609831749,-161.4516961,0.000109,2]
[340659596,1729609831761,-441.93854479,0.000109,2]
[340659597,1729609831785,-1151.55012815,0.000109,2]
[340659598,1729609831796,-1007.07587274,0.000109,2]
[340659599,1729609831807,-7196.47447126,0.000109,2]
[340659600,1729609831816,-1003.5463,0.000109,2]
[340659601,1729609831826,-675.2984,0.000109,2]
[340659602,1729609831835,-22252.29163356,0.000109,2]
[340659603,1729609831844,-1443.39149342,0.000109,2]
[340659604,1729609831853,-3862.5,0.000109,2]
[340659605,1729609831862,-613.7878,0.000109,2]
[340659606,1729609831871,-698.51,0.00010904,2]